[Event "Titled Tuesday Blitz April 19 Early 2022"]
[White "Pakleza, Zbigniew"]
[Black "Guz, Ari"]
[WhiteFideId "1119290"]
[BlackFideId "2825759"]
[WhiteElo "2467"]
[BlackElo "1913"]
[Result "1-0"]
[Round "06"]
[TimeControl "180+1"]
[Date "2022.04.19"]
[WhiteClock "0:00:07"]
[BlackClock "0:00:25"]

1. d4 {[%clk 0:03:00]}  d5 {[%clk 0:02:58]} 2. Bf4 {[%clk 0:03:00]}  Nf6 {[%clk 0:02:57]} 3. e3 {[%clk 0:03:01]}  g6 {[%clk 0:02:55]} 4. Nf3 {[%clk 0:02:56]}  Bg7 {[%clk 0:02:56]} 5. Be2 {[%clk 0:02:56]}  O-O {[%clk 0:02:55]} 6. O-O {[%clk 0:02:57]}  c5 {[%clk 0:02:56]} 7. c3 {[%clk 0:02:57]}  b6 {[%clk 0:02:54]} 8. Nbd2 {[%clk 0:02:57]}  Ba6 {[%clk 0:02:54]} 9. Bxa6 {[%clk 0:02:56]}  Nxa6 {[%clk 0:02:55]} 10. h3 {[%clk 0:02:53]}  c4 {[%clk 0:02:51]} 11. Qe2 {[%clk 0:02:45]}  b5 {[%clk 0:02:50]} 12. a3 {[%clk 0:02:36]}  Nc7 {[%clk 0:02:43]} 13. e4 {[%clk 0:02:23]}  e6 {[%clk 0:02:42]} 14. e5 {[%clk 0:02:04]}  Nd7 {[%clk 0:02:39]} 15. Bg5 {[%clk 0:02:02]}  Qb8 {[%clk 0:02:37]} 16. Qe3 {[%clk 0:02:01]}  a5 {[%clk 0:02:32]} 17. h4 {[%clk 0:01:59]}  b4 {[%clk 0:02:30]} 18. h5 {[%clk 0:01:58]}  Nb5 {[%clk 0:02:21]} 19. a4 {[%clk 0:01:47]}  Nc7 {[%clk 0:02:13]} 20. g3 {[%clk 0:01:45]}  Qb6 {[%clk 0:02:05]} 21. Kg2 {[%clk 0:01:43]}  Rae8 {[%clk 0:01:54]} 22. Rh1 {[%clk 0:01:36]}  f6 {[%clk 0:01:52]} 23. exf6 {[%clk 0:01:34]}  Nxf6 {[%clk 0:01:53]} 24. hxg6 {[%clk 0:01:34]}  hxg6 {[%clk 0:01:51]} 25. Ne5 {[%clk 0:01:31]}  Nh7 {[%clk 0:01:51]} 26. Nd7 {[%clk 0:01:12]}  Qc6 {[%clk 0:01:43]} 27. Nxf8 {[%clk 0:01:12]}  Nxf8 {[%clk 0:01:40]} 28. Bh6 {[%clk 0:01:09]}  e5 {[%clk 0:01:36]} 29. Bxg7 {[%clk 0:01:09]}  Kxg7 {[%clk 0:01:36]} 30. Qh6+ {[%clk 0:01:09]}  Kf7 {[%clk 0:01:37]} 31. Nf3 {[%clk 0:01:06]}  Qf6 {[%clk 0:01:35]} 32. Nxe5+ {[%clk 0:01:04]}  Rxe5 {[%clk 0:01:36]} 33. dxe5 {[%clk 0:01:03]}  Qxe5 {[%clk 0:01:36]} 34. Rae1 {[%clk 0:01:00]}  Qf5 {[%clk 0:01:36]} 35. Qf4 {[%clk 0:00:48]}  Qxf4 {[%clk 0:01:36]} 36. gxf4 {[%clk 0:00:48]}  b3 {[%clk 0:01:34]} 37. Rh8 {[%clk 0:00:34]}  Nfe6 {[%clk 0:01:30]} 38. Rh7+ {[%clk 0:00:23]}  Kf6 {[%clk 0:01:31]} 39. Kg3 {[%clk 0:00:18]}  d4 {[%clk 0:01:23]} 40. cxd4 {[%clk 0:00:16]}  Nd5 {[%clk 0:01:23]} 41. Re5 {[%clk 0:00:15]}  Nb4 {[%clk 0:00:59]} 42. Rxa5 {[%clk 0:00:10]}  c3 {[%clk 0:00:58]} 43. bxc3 {[%clk 0:00:11]}  b2 {[%clk 0:00:58]} 44. Rh1 {[%clk 0:00:12]}  Na2 {[%clk 0:00:51]} 45. Rb5 {[%clk 0:00:09]}  Nxc3 {[%clk 0:00:49]} 46. Rxb2 {[%clk 0:00:09]}  Nxa4 {[%clk 0:00:49]} 47. Rb4 {[%clk 0:00:10]}  Nc3 {[%clk 0:00:49]} 48. Ra1 {[%clk 0:00:08]}  Nd5 {[%clk 0:00:46]} 49. Rc4 {[%clk 0:00:06]}  Ndxf4 {[%clk 0:00:45]} 50. Ra6 {[%clk 0:00:06]}  Kf5 {[%clk 0:00:35]} 51. Rc5+ {[%clk 0:00:07]}  Ke4 {[%clk 0:00:22]} 52. Re5+ {[%clk 0:00:07]}  Kxd4 {[%clk 0:00:20]} 53. Rexe6 {[%clk 0:00:08]}  Nh5+ {[%clk 0:00:20]} 54. Kg4 {[%clk 0:00:08]}  Ng7 {[%clk 0:00:20]} 55. Rxg6 {[%clk 0:00:08]}  Ne8 {[%clk 0:00:21]} 56. Rae6 {[%clk 0:00:07]}  Nc7 {[%clk 0:00:22]} 57. Rd6+ {[%clk 0:00:07]}  Ke5 {[%clk 0:00:22]} 58. Rc6 {[%clk 0:00:07]}  Nd5 {[%clk 0:00:23]} 59. Rge6+ {[%clk 0:00:06]}  Kd4 {[%clk 0:00:24]} 60. Rcd6 {[%clk 0:00:06]}  Kc4 {[%clk 0:00:24]} 61. Rxd5 {[%clk 0:00:07]}  Kxd5 {[%clk 0:00:25]} 62. Re3 {[%clk 0:00:07]} 1-0


[Site "https://www.chess.com"]

[Event "Titled Tuesday Blitz April 19 Early 2022"]
[White "Palachev, Petr"]
[Black "Trost, Edvin"]
[WhiteFideId "24129003"]
[BlackFideId "1729519"]
[WhiteElo "2339"]
[BlackElo "2160"]
[Result "1-0"]
[Round "06"]
[TimeControl "180+1"]
[Date "2022.04.19"]
[WhiteClock "0:01:41"]
[BlackClock "0:01:01"]

1. d4 {[%clk 0:03:00]}  Nf6 {[%clk 0:02:56]} 2. Nf3 {[%clk 0:03:01]}  e6 {[%clk 0:02:54]} 3. Bg5 {[%clk 0:03:02]}  c5 {[%clk 0:02:51]} 4. e3 {[%clk 0:03:02]}  h6 {[%clk 0:02:48]} 5. Bh4 {[%clk 0:03:00]}  b6 {[%clk 0:02:47]} 6. Nbd2 {[%clk 0:03:00]}  Ba6 {[%clk 0:02:44]} 7. Bxa6 {[%clk 0:02:46]}  Nxa6 {[%clk 0:02:45]} 8. Qe2 {[%clk 0:02:46]}  Nc7 {[%clk 0:02:43]} 9. O-O-O {[%clk 0:02:43]}  Be7 {[%clk 0:02:42]} 10. Rhg1 {[%clk 0:02:39]}  Qc8 {[%clk 0:02:35]} 11. g4 {[%clk 0:02:33]}  cxd4 {[%clk 0:02:26]} 12. Nxd4 {[%clk 0:02:27]}  Ncd5 {[%clk 0:02:19]} 13. Kb1 {[%clk 0:02:26]}  Nb4 {[%clk 0:02:04]} 14. c3 {[%clk 0:02:26]}  Nc6 {[%clk 0:02:03]} 15. Bxf6 {[%clk 0:02:11]}  Bxf6 {[%clk 0:02:00]} 16. Ne4 {[%clk 0:02:12]}  Be7 {[%clk 0:02:01]} 17. Nb5 {[%clk 0:01:59]}  O-O {[%clk 0:02:00]} 18. g5 {[%clk 0:01:53]}  hxg5 {[%clk 0:01:57]} 19. Qh5 {[%clk 0:01:47]}  Qd8 {[%clk 0:01:51]} 20. Rxg5 {[%clk 0:01:40]}  d5 {[%clk 0:01:05]} 21. Rxg7+ {[%clk 0:01:38]}  Kxg7 {[%clk 0:01:01]} 22. Rg1+ {[%clk 0:01:39]}  Bg5 {[%clk 0:01:01]} 23. Rxg5+ {[%clk 0:01:39]}  Qxg5 {[%clk 0:01:01]} 24. Qxg5+ {[%clk 0:01:40]}  Kh8 {[%clk 0:01:01]} 25. Qh6+ {[%clk 0:01:40]}  Kg8 {[%clk 0:01:01]} 26. Nf6# {[%clk 0:01:41]} 1-0


[Site "https://www.chess.com"]

[Event "Titled Tuesday Blitz April 19 Early 2022"]
[White "Papp, Levente"]
[Black "Silva Lucena, Cristian"]
[WhiteFideId "751243"]
[BlackFideId "2232588"]
[WhiteElo "2308"]
[BlackElo "2223"]
[Result "1/2-1/2"]
[Round "06"]
[TimeControl "180+1"]
[Date "2022.04.19"]
[WhiteClock "0:00:03"]
[BlackClock "0:00:03"]

1. c4 {[%clk 0:03:00]}  Nf6 {[%clk 0:02:58]} 2. Nc3 {[%clk 0:03:00]}  g6 {[%clk 0:02:54]} 3. e4 {[%clk 0:02:59]}  d6 {[%clk 0:02:55]} 4. g3 {[%clk 0:03:00]}  Bg7 {[%clk 0:02:55]} 5. Bg2 {[%clk 0:03:00]}  O-O {[%clk 0:02:55]} 6. Nge2 {[%clk 0:03:01]}  c5 {[%clk 0:02:53]} 7. O-O {[%clk 0:03:01]}  Nc6 {[%clk 0:02:53]} 8. d3 {[%clk 0:03:02]}  Rb8 {[%clk 0:02:51]} 9. Rb1 {[%clk 0:03:02]}  a6 {[%clk 0:02:51]} 10. a3 {[%clk 0:03:03]}  b5 {[%clk 0:02:49]} 11. cxb5 {[%clk 0:03:04]}  axb5 {[%clk 0:02:49]} 12. b4 {[%clk 0:03:05]}  cxb4 {[%clk 0:02:48]} 13. axb4 {[%clk 0:03:05]}  Nd7 {[%clk 0:02:30]} 14. Be3 {[%clk 0:03:03]}  Nde5 {[%clk 0:02:16]} 15. h3 {[%clk 0:03:02]}  Nd7 {[%clk 0:02:05]} 16. d4 {[%clk 0:02:36]}  e6 {[%clk 0:01:48]} 17. d5 {[%clk 0:02:01]}  exd5 {[%clk 0:01:39]} 18. Nxd5 {[%clk 0:02:00]}  Nde5 {[%clk 0:01:29]} 19. Nd4 {[%clk 0:01:58]}  Nxd4 {[%clk 0:01:26]} 20. Bxd4 {[%clk 0:01:59]}  Be6 {[%clk 0:01:23]} 21. Ne3 {[%clk 0:01:44]}  Nc4 {[%clk 0:01:16]} 22. Bxg7 {[%clk 0:01:11]}  Kxg7 {[%clk 0:01:17]} 23. Qd4+ {[%clk 0:01:03]}  Qf6 {[%clk 0:01:17]} 24. Rfd1 {[%clk 0:01:02]}  Qxd4 {[%clk 0:01:06]} 25. Rxd4 {[%clk 0:01:02]}  Nxe3 {[%clk 0:01:06]} 26. fxe3 {[%clk 0:01:02]}  Rfc8 {[%clk 0:01:07]} 27. Rxd6 {[%clk 0:00:56]}  Rc3 {[%clk 0:01:03]} 28. Re1 {[%clk 0:00:51]}  Rb3 {[%clk 0:00:56]} 29. Rd4 {[%clk 0:00:45]}  Rc8 {[%clk 0:00:56]} 30. e5 {[%clk 0:00:38]}  Rcc3 {[%clk 0:00:52]} 31. Bd5 {[%clk 0:00:36]}  Rxe3 {[%clk 0:00:47]} 32. Rxe3 {[%clk 0:00:34]}  Rxe3 {[%clk 0:00:48]} 33. Bxe6 {[%clk 0:00:34]}  fxe6 {[%clk 0:00:47]} 34. Kf2 {[%clk 0:00:23]}  Rxe5 {[%clk 0:00:46]} 35. Kf3 {[%clk 0:00:19]}  Kf6 {[%clk 0:00:42]} 36. g4 {[%clk 0:00:17]}  h5 {[%clk 0:00:40]} 37. Rd8 {[%clk 0:00:14]}  hxg4+ {[%clk 0:00:37]} 38. hxg4 {[%clk 0:00:15]}  Rd5 {[%clk 0:00:36]} 39. Rf8+ {[%clk 0:00:14]}  Ke5 {[%clk 0:00:31]} 40. Rg8 {[%clk 0:00:14]}  Rd3+ {[%clk 0:00:21]} 41. Ke2 {[%clk 0:00:15]}  Rd4 {[%clk 0:00:20]} 42. Rxg6 {[%clk 0:00:15]}  Rxb4 {[%clk 0:00:20]} 43. Rg8 {[%clk 0:00:14]}  Kf4 {[%clk 0:00:19]} 44. g5 {[%clk 0:00:14]}  e5 {[%clk 0:00:19]} 45. g6 {[%clk 0:00:14]}  Rb2+ {[%clk 0:00:19]} 46. Kf1 {[%clk 0:00:12]}  Rb3 {[%clk 0:00:12]} 47. g7 {[%clk 0:00:07]}  Rf3+ {[%clk 0:00:12]} 48. Kg2 {[%clk 0:00:07]}  Rg3+ {[%clk 0:00:12]} 49. Kf2 {[%clk 0:00:07]}  Rg6 {[%clk 0:00:09]} 50. Rf8+ {[%clk 0:00:07]}  Ke4 {[%clk 0:00:10]} 51. g8=Q {[%clk 0:00:07]}  Rxg8 {[%clk 0:00:10]} 52. Rxg8 {[%clk 0:00:08]}  Kd3 {[%clk 0:00:08]} 53. Rb8 {[%clk 0:00:08]}  Kc4 {[%clk 0:00:08]} 54. Ke3 {[%clk 0:00:08]}  b4 {[%clk 0:00:09]} 55. Rc8+ {[%clk 0:00:08]}  Kb3 {[%clk 0:00:08]} 56. Kd3 {[%clk 0:00:09]}  e4+ {[%clk 0:00:06]} 57. Kxe4 {[%clk 0:00:09]}  Ka2 {[%clk 0:00:05]} 58. Ra8+ {[%clk 0:00:08]}  Kb2 {[%clk 0:00:04]} 59. Kd3 {[%clk 0:00:09]}  b3 {[%clk 0:00:05]} 60. Kd2 {[%clk 0:00:05]}  Kb1 {[%clk 0:00:03]} 61. Kc3 {[%clk 0:00:05]}  b2 {[%clk 0:00:03]} 62. Rb8 {[%clk 0:00:05]}  Ka1 {[%clk 0:00:04]} 63. Ra8+ {[%clk 0:00:06]}  Kb1 {[%clk 0:00:04]} 64. Rh8 {[%clk 0:00:06]}  Ka2 {[%clk 0:00:04]} 65. Rh2 {[%clk 0:00:06]}  Ka1 {[%clk 0:00:03]} 66. Rxb2 {[%clk 0:00:03]} 1/2-1/2


[Site "https://www.chess.com"]

[Event "Titled Tuesday Blitz April 19 Early 2022"]
[White "Pert, Nicholas"]
[Black "Constantinou, Peter"]
[WhiteFideId "403989"]
[BlackFideId "413038"]
[WhiteElo "2536"]
[BlackElo "2230"]
[Result "0-1"]
[Round "06"]
[TimeControl "180+1"]
[Date "2022.04.19"]
[WhiteClock "0:00:08"]
[BlackClock "0:00:14"]

1. d4 {[%clk 0:03:00]}  g6 {[%clk 0:03:00]} 2. e4 {[%clk 0:02:57]}  Bg7 {[%clk 0:03:00]} 3. Nf3 {[%clk 0:02:56]}  d6 {[%clk 0:03:00]} 4. Bc4 {[%clk 0:02:56]}  Nf6 {[%clk 0:02:56]} 5. Qe2 {[%clk 0:02:56]}  O-O {[%clk 0:02:44]} 6. e5 {[%clk 0:02:54]}  dxe5 {[%clk 0:02:39]} 7. dxe5 {[%clk 0:02:55]}  Nd5 {[%clk 0:02:39]} 8. O-O {[%clk 0:02:54]}  Bg4 {[%clk 0:02:33]} 9. Nbd2 {[%clk 0:02:52]}  Nc6 {[%clk 0:02:33]} 10. h3 {[%clk 0:02:46]}  Nd4 {[%clk 0:02:22]} 11. Qe4 {[%clk 0:02:39]}  Nxf3+ {[%clk 0:02:19]} 12. Nxf3 {[%clk 0:02:39]}  Bxf3 {[%clk 0:02:17]} 13. Qxf3 {[%clk 0:02:39]}  Nb6 {[%clk 0:02:14]} 14. Bb3 {[%clk 0:02:35]}  c6 {[%clk 0:02:14]} 15. Re1 {[%clk 0:02:34]}  e6 {[%clk 0:02:12]} 16. Bf4 {[%clk 0:02:32]}  Qe7 {[%clk 0:02:12]} 17. Qg3 {[%clk 0:02:29]}  h6 {[%clk 0:02:11]} 18. h4 {[%clk 0:02:26]}  Rfd8 {[%clk 0:02:07]} 19. Rad1 {[%clk 0:02:17]}  Rxd1 {[%clk 0:02:02]} 20. Rxd1 {[%clk 0:02:18]}  Rd8 {[%clk 0:01:59]} 21. Rd6 {[%clk 0:01:15]}  Nc8 {[%clk 0:01:59]} 22. Rxd8+ {[%clk 0:01:14]}  Qxd8 {[%clk 0:02:00]} 23. Qg4 {[%clk 0:01:05]}  Ne7 {[%clk 0:01:54]} 24. h5 {[%clk 0:01:00]}  g5 {[%clk 0:01:49]} 25. Bh2 {[%clk 0:00:53]}  Nf5 {[%clk 0:01:47]} 26. Qe2 {[%clk 0:00:53]}  Qd4 {[%clk 0:01:45]} 27. g4 {[%clk 0:00:51]}  Ne7 {[%clk 0:01:30]} 28. c3 {[%clk 0:00:51]}  Qc5 {[%clk 0:01:25]} 29. Bg3 {[%clk 0:00:49]}  Nd5 {[%clk 0:01:23]} 30. Qe4 {[%clk 0:00:48]}  b5 {[%clk 0:01:09]} 31. Kg2 {[%clk 0:00:46]}  a5 {[%clk 0:01:08]} 32. a4 {[%clk 0:00:45]}  b4 {[%clk 0:01:07]} 33. cxb4 {[%clk 0:00:38]}  Nxb4 {[%clk 0:01:06]} 34. Qc4 {[%clk 0:00:34]}  Qd5+ {[%clk 0:00:50]} 35. Kh2 {[%clk 0:00:17]}  Bxe5 {[%clk 0:00:48]} 36. Qxb4 {[%clk 0:00:15]}  Qf3 {[%clk 0:00:15]} 37. Qc4 {[%clk 0:00:11]}  Qxf2+ {[%clk 0:00:16]} 38. Kh1 {[%clk 0:00:09]}  Bxg3 {[%clk 0:00:15]} 39. Qc2 {[%clk 0:00:08]}  Qf1# {[%clk 0:00:14]} 0-1


[Site "https://www.chess.com"]

[Event "Titled Tuesday Blitz April 19 Early 2022"]
[White "Pert, Richard G"]
[Black "Devaev, Alexander"]
[WhiteFideId "404748"]
[BlackFideId "4169395"]
[WhiteElo "2441"]
[BlackElo "2185"]
[Result "0-1"]
[Round "06"]
[TimeControl "180+1"]
[Date "2022.04.19"]
[WhiteClock "0:00:10"]
[BlackClock "0:00:11"]

1. Nf3 {[%clk 0:03:00]}  Nf6 {[%clk 0:02:53]} 2. g3 {[%clk 0:03:00]}  c5 {[%clk 0:02:52]} 3. Bg2 {[%clk 0:02:59]}  Nc6 {[%clk 0:02:53]} 4. O-O {[%clk 0:02:58]}  e6 {[%clk 0:02:53]} 5. c4 {[%clk 0:02:53]}  Be7 {[%clk 0:02:53]} 6. d4 {[%clk 0:02:52]}  cxd4 {[%clk 0:02:53]} 7. Nxd4 {[%clk 0:02:53]}  O-O {[%clk 0:02:54]} 8. Nc3 {[%clk 0:02:52]}  Ne5 {[%clk 0:02:54]} 9. b3 {[%clk 0:02:48]}  d6 {[%clk 0:02:55]} 10. Bb2 {[%clk 0:02:46]}  a6 {[%clk 0:02:55]} 11. Rc1 {[%clk 0:02:43]}  Qc7 {[%clk 0:02:55]} 12. Qd2 {[%clk 0:02:38]}  Rb8 {[%clk 0:02:55]} 13. Rfd1 {[%clk 0:02:35]}  Re8 {[%clk 0:02:56]} 14. h3 {[%clk 0:02:34]}  Bf8 {[%clk 0:02:56]} 15. Nf3 {[%clk 0:02:20]}  Ned7 {[%clk 0:02:55]} 16. Qe3 {[%clk 0:02:16]}  b6 {[%clk 0:02:44]} 17. Ng5 {[%clk 0:02:06]}  Bb7 {[%clk 0:02:37]} 18. Nce4 {[%clk 0:02:05]}  Nxe4 {[%clk 0:02:14]} 19. Nxe4 {[%clk 0:01:55]}  Nc5 {[%clk 0:02:08]} 20. Nf6+ {[%clk 0:01:44]}  gxf6 {[%clk 0:01:11]} 21. Bxf6 {[%clk 0:01:45]}  h6 {[%clk 0:01:12]} 22. Rd4 {[%clk 0:01:25]}  Bxg2 {[%clk 0:00:54]} 23. Rg4+ {[%clk 0:01:22]}  Kh7 {[%clk 0:00:53]} 24. Kxg2 {[%clk 0:01:19]}  e5 {[%clk 0:00:36]} 25. b4 {[%clk 0:01:14]}  Re6 {[%clk 0:00:25]} 26. Qf3 {[%clk 0:01:09]}  Qb7 {[%clk 0:00:25]} 27. e4 {[%clk 0:01:08]}  Rxf6 {[%clk 0:00:18]} 28. Qxf6 {[%clk 0:01:08]}  Ne6 {[%clk 0:00:13]} 29. Rc3 {[%clk 0:00:50]}  Bg7 {[%clk 0:00:13]} 30. Qf5+ {[%clk 0:00:50]}  Kh8 {[%clk 0:00:13]} 31. Rf3 {[%clk 0:00:50]}  Rf8 {[%clk 0:00:12]} 32. Qh5 {[%clk 0:00:46]}  Kh7 {[%clk 0:00:08]} 33. Rf5 {[%clk 0:00:40]}  Qe7 {[%clk 0:00:08]} 34. a4 {[%clk 0:00:32]}  Nd4 {[%clk 0:00:07]} 35. Rfg5 {[%clk 0:00:28]}  Rg8 {[%clk 0:00:08]} 36. f4 {[%clk 0:00:21]}  exf4 {[%clk 0:00:07]} 37. e5 {[%clk 0:00:20]}  dxe5 {[%clk 0:00:07]} 38. gxf4 {[%clk 0:00:16]}  exf4 {[%clk 0:00:06]} 39. Kh1 {[%clk 0:00:16]}  Qe1+ {[%clk 0:00:06]} 40. Rg1 {[%clk 0:00:16]}  Qe4+ {[%clk 0:00:05]} 41. R1g2 {[%clk 0:00:16]}  f3 {[%clk 0:00:05]} 42. Rf2 {[%clk 0:00:15]}  Qe1+ {[%clk 0:00:05]} 43. Rg1 {[%clk 0:00:13]}  Qxf2 {[%clk 0:00:05]} 44. Qg4 {[%clk 0:00:14]}  Ne6 {[%clk 0:00:04]} 45. Qf5+ {[%clk 0:00:13]}  Kh8 {[%clk 0:00:05]} 46. Qxf7 {[%clk 0:00:14]}  Qe2 {[%clk 0:00:05]} 47. Qg6 {[%clk 0:00:07]}  Qe5 {[%clk 0:00:05]} 48. Qg4 {[%clk 0:00:06]}  Qf6 {[%clk 0:00:04]} 49. Rf1 {[%clk 0:00:06]}  Rf8 {[%clk 0:00:05]} 50. Qh5 {[%clk 0:00:06]}  f2 {[%clk 0:00:05]} 51. Qe2 {[%clk 0:00:06]}  Ng5 {[%clk 0:00:05]} 52. c5 {[%clk 0:00:06]}  Qf3+ {[%clk 0:00:06]} 53. Qxf3 {[%clk 0:00:06]}  Rxf3 {[%clk 0:00:05]} 54. cxb6 {[%clk 0:00:06]}  Be5 {[%clk 0:00:06]} 55. b7 {[%clk 0:00:05]}  Rxh3+ {[%clk 0:00:06]} 56. Kg2 {[%clk 0:00:05]}  Rf3 {[%clk 0:00:07]} 57. b5 {[%clk 0:00:05]}  axb5 {[%clk 0:00:07]} 58. a5 {[%clk 0:00:06]}  Bb8 {[%clk 0:00:07]} 59. a6 {[%clk 0:00:06]}  Ba7 {[%clk 0:00:06]} 60. Rd1 {[%clk 0:00:05]}  f1=Q+ {[%clk 0:00:06]} 61. Rxf1 {[%clk 0:00:05]}  Rxf1 {[%clk 0:00:07]} 62. Kxf1 {[%clk 0:00:05]}  b4 {[%clk 0:00:08]} 63. Ke2 {[%clk 0:00:06]}  h5 {[%clk 0:00:09]} 64. Kd3 {[%clk 0:00:06]}  h4 {[%clk 0:00:09]} 65. Kc4 {[%clk 0:00:07]}  h3 {[%clk 0:00:10]} 66. Kxb4 {[%clk 0:00:08]}  h2 {[%clk 0:00:11]} 67. Kb5 {[%clk 0:00:09]}  h1=Q {[%clk 0:00:11]} 68. b8=Q+ {[%clk 0:00:09]}  Bxb8 {[%clk 0:00:11]} 69. Kb6 {[%clk 0:00:10]}  Qg1+ {[%clk 0:00:11]} 70. Kb7 {[%clk 0:00:10]}  Qa7+ {[%clk 0:00:12]} 71. Kc8 {[%clk 0:00:10]}  Be5 {[%clk 0:00:12]} 72. Kd8 {[%clk 0:00:09]}  Qxa6 {[%clk 0:00:12]} 73. Kd7 {[%clk 0:00:09]}  Qd6+ {[%clk 0:00:12]} 74. Ke8 {[%clk 0:00:10]}  Qe6+ {[%clk 0:00:11]} 75. Kf8 {[%clk 0:00:10]}  Bd6# {[%clk 0:00:11]} 0-1


[Site "https://www.chess.com"]

[Event "Titled Tuesday Blitz April 19 Early 2022"]
[White "Pinheiro, Iung Alicio de O."]
[Black "Ajay Krishna, S"]
[WhiteFideId "2104350"]
[BlackFideId "5096430"]
[WhiteElo "2553"]
[BlackElo "2247"]
[Result "1-0"]
[Round "06"]
[TimeControl "180+1"]
[Date "2022.04.19"]
[WhiteClock "0:00:06"]
[BlackClock "0:00:08"]

1. c4 {[%clk 0:03:00]}  c5 {[%clk 0:02:59]} 2. g3 {[%clk 0:03:00]}  Nc6 {[%clk 0:02:58]} 3. Bg2 {[%clk 0:03:00]}  g6 {[%clk 0:02:57]} 4. Nc3 {[%clk 0:02:59]}  Bg7 {[%clk 0:02:56]} 5. a3 {[%clk 0:03:00]}  e6 {[%clk 0:02:53]} 6. b4 {[%clk 0:03:00]}  Nxb4 {[%clk 0:02:49]} 7. axb4 {[%clk 0:03:01]}  cxb4 {[%clk 0:02:49]} 8. Nb5 {[%clk 0:02:58]}  Bxa1 {[%clk 0:02:48]} 9. Qa4 {[%clk 0:02:58]}  Bf6 {[%clk 0:02:37]} 10. Nd6+ {[%clk 0:02:55]}  Kf8 {[%clk 0:02:33]} 11. Qxb4 {[%clk 0:02:56]}  Kg7 {[%clk 0:02:28]} 12. Nh3 {[%clk 0:02:52]}  Ne7 {[%clk 0:02:26]} 13. c5 {[%clk 0:02:49]}  Nc6 {[%clk 0:02:25]} 14. Qf4 {[%clk 0:02:49]}  h6 {[%clk 0:02:06]} 15. O-O {[%clk 0:02:40]}  b6 {[%clk 0:02:03]} 16. d4 {[%clk 0:02:10]}  Nxd4 {[%clk 0:02:01]} 17. Re1 {[%clk 0:01:41]}  Ba6 {[%clk 0:01:58]} 18. Qe4 {[%clk 0:01:30]}  bxc5 {[%clk 0:01:48]} 19. Bf4 {[%clk 0:01:19]}  Rb8 {[%clk 0:01:39]} 20. Bf1 {[%clk 0:00:50]}  Rb4 {[%clk 0:01:32]} 21. Qg2 {[%clk 0:00:39]}  e5 {[%clk 0:01:24]} 22. Bd2 {[%clk 0:00:38]}  Rb8 {[%clk 0:01:16]} 23. e3 {[%clk 0:00:34]}  Bxf1 {[%clk 0:00:58]} 24. Kxf1 {[%clk 0:00:35]}  Nb5 {[%clk 0:00:51]} 25. Rd1 {[%clk 0:00:29]}  Nxd6 {[%clk 0:00:50]} 26. Bc3 {[%clk 0:00:26]}  Qb6 {[%clk 0:00:47]} 27. Qd5 {[%clk 0:00:25]}  Qa6+ {[%clk 0:00:39]} 28. Kg1 {[%clk 0:00:25]}  Nc4 {[%clk 0:00:40]} 29. g4 {[%clk 0:00:17]}  Qe6 {[%clk 0:00:38]} 30. Qf3 {[%clk 0:00:15]}  e4 {[%clk 0:00:30]} 31. Bxf6+ {[%clk 0:00:15]}  Qxf6 {[%clk 0:00:30]} 32. Qxe4 {[%clk 0:00:15]}  Ne5 {[%clk 0:00:30]} 33. Nf4 {[%clk 0:00:14]}  Nxg4 {[%clk 0:00:27]} 34. h3 {[%clk 0:00:15]}  Ne5 {[%clk 0:00:24]} 35. Rd5 {[%clk 0:00:14]}  d6 {[%clk 0:00:23]} 36. Qg2 {[%clk 0:00:14]}  Kh7 {[%clk 0:00:22]} 37. Kh2 {[%clk 0:00:12]}  Rhg8 {[%clk 0:00:20]} 38. Qe4 {[%clk 0:00:13]}  Qg7 {[%clk 0:00:19]} 39. Rxd6 {[%clk 0:00:12]}  Rge8 {[%clk 0:00:19]} 40. Nd5 {[%clk 0:00:12]}  f5 {[%clk 0:00:14]} 41. Qf4 {[%clk 0:00:11]}  Rbd8 {[%clk 0:00:11]} 42. Nf6+ {[%clk 0:00:10]}  Kh8 {[%clk 0:00:08]} 43. Qxe5 {[%clk 0:00:06]} 1-0


[Site "https://www.chess.com"]

[Event "Titled Tuesday Blitz April 19 Early 2022"]
[White "Pires, Marcos Vinicius Torsani"]
[Black "Jakubowski, Krzysztof"]
[WhiteFideId "2118939"]
[BlackFideId "1112848"]
[WhiteElo "2273"]
[BlackElo "2365"]
[Result "0-1"]
[Round "06"]
[TimeControl "180+1"]
[Date "2022.04.19"]
[WhiteClock "0:00:13"]
[BlackClock "0:00:13"]

1. e4 {[%clk 0:03:00]}  c5 {[%clk 0:02:58]} 2. c3 {[%clk 0:03:01]}  Nf6 {[%clk 0:02:56]} 3. e5 {[%clk 0:03:01]}  Nd5 {[%clk 0:02:56]} 4. d4 {[%clk 0:03:01]}  cxd4 {[%clk 0:02:56]} 5. Nf3 {[%clk 0:03:01]}  e6 {[%clk 0:02:52]} 6. cxd4 {[%clk 0:02:59]}  d6 {[%clk 0:02:49]} 7. Bc4 {[%clk 0:02:59]}  Nb6 {[%clk 0:02:48]} 8. Bd3 {[%clk 0:02:53]}  Nc6 {[%clk 0:02:47]} 9. exd6 {[%clk 0:02:53]}  Bxd6 {[%clk 0:02:45]} 10. O-O {[%clk 0:02:53]}  Nb4 {[%clk 0:02:38]} 11. Be2 {[%clk 0:02:46]}  O-O {[%clk 0:02:34]} 12. Nc3 {[%clk 0:02:46]}  Bd7 {[%clk 0:02:31]} 13. Bg5 {[%clk 0:02:44]}  Be7 {[%clk 0:02:27]} 14. Be3 {[%clk 0:02:39]}  Bc6 {[%clk 0:02:23]} 15. Ne5 {[%clk 0:02:34]}  Rc8 {[%clk 0:02:22]} 16. a3 {[%clk 0:02:30]}  N4d5 {[%clk 0:02:21]} 17. Rc1 {[%clk 0:02:20]}  Nxe3 {[%clk 0:02:15]} 18. fxe3 {[%clk 0:02:17]}  Bg5 {[%clk 0:02:13]} 19. Qd3 {[%clk 0:02:04]}  Bd5 {[%clk 0:02:02]} 20. Rcd1 {[%clk 0:01:53]}  Nc4 {[%clk 0:01:49]} 21. Nxc4 {[%clk 0:01:47]}  Bxc4 {[%clk 0:01:50]} 22. Qd2 {[%clk 0:01:48]}  Bxe2 {[%clk 0:01:49]} 23. Qxe2 {[%clk 0:01:48]}  Qb6 {[%clk 0:01:47]} 24. Ne4 {[%clk 0:01:44]}  Be7 {[%clk 0:01:47]} 25. b4 {[%clk 0:01:43]}  a5 {[%clk 0:01:46]} 26. Nc5 {[%clk 0:01:38]}  Rcd8 {[%clk 0:01:35]} 27. bxa5 {[%clk 0:01:34]}  Qa7 {[%clk 0:01:35]} 28. Qb5 {[%clk 0:01:30]}  Bxc5 {[%clk 0:01:33]} 29. dxc5 {[%clk 0:01:28]}  h5 {[%clk 0:01:17]} 30. Qb6 {[%clk 0:01:23]}  Qa8 {[%clk 0:01:17]} 31. Rd6 {[%clk 0:01:20]}  Rc8 {[%clk 0:01:13]} 32. Rd7 {[%clk 0:01:15]}  Rc6 {[%clk 0:01:07]} 33. Qxb7 {[%clk 0:01:05]}  Qxb7 {[%clk 0:01:07]} 34. Rxb7 {[%clk 0:01:06]}  Rxc5 {[%clk 0:01:07]} 35. a6 {[%clk 0:01:07]}  Ra5 {[%clk 0:01:05]} 36. a7 {[%clk 0:01:07]}  g5 {[%clk 0:00:58]} 37. Rc1 {[%clk 0:00:58]}  Rxa3 {[%clk 0:00:46]} 38. Kf2 {[%clk 0:00:58]}  Kg7 {[%clk 0:00:43]} 39. Rcc7 {[%clk 0:00:55]}  Kg6 {[%clk 0:00:37]} 40. Kf3 {[%clk 0:00:48]}  f6 {[%clk 0:00:33]} 41. h3 {[%clk 0:00:35]}  h4 {[%clk 0:00:29]} 42. Kf2 {[%clk 0:00:33]}  Kf5 {[%clk 0:00:27]} 43. Rb5+ {[%clk 0:00:29]}  e5 {[%clk 0:00:25]} 44. Rbb7 {[%clk 0:00:25]}  Rd8 {[%clk 0:00:23]} 45. Rb8 {[%clk 0:00:18]}  Rd2+ {[%clk 0:00:18]} 46. Ke1 {[%clk 0:00:15]}  Rda2 {[%clk 0:00:17]} 47. a8=Q {[%clk 0:00:15]}  Rxa8 {[%clk 0:00:16]} 48. Rxa8 {[%clk 0:00:15]}  Rxa8 {[%clk 0:00:16]} 49. Ke2 {[%clk 0:00:15]}  Ra2+ {[%clk 0:00:16]} 50. Kf1 {[%clk 0:00:15]}  Ke4 {[%clk 0:00:15]} 51. Rc3 {[%clk 0:00:15]}  Rd2 {[%clk 0:00:14]} 52. Rc6 {[%clk 0:00:14]}  f5 {[%clk 0:00:14]} 53. Rg6 {[%clk 0:00:13]}  Kxe3 {[%clk 0:00:13]} 54. Rxg5 {[%clk 0:00:13]}  Rd1# {[%clk 0:00:13]} 0-1


[Site "https://www.chess.com"]